[Event "Titled Tuesday Blitz December 06 Early 2022"]
[White "Postnikov, Artem"]
[Black "Ibarra Jerez, Jose Carlos"]
[WhiteFideId "34153575"]
[BlackFideId "2226332"]
[WhiteElo "2243"]
[BlackElo "2638"]
[Result "0-1"]
[Round "02"]
[TimeControl "180+1"]
[Date "2022.12.07"]
[WhiteClock "0:00:04"]
[BlackClock "0:00:24"]

1. d4 {[%clk 0:02:54]}  Nf6 {[%clk 0:02:59]} 2. c4 {[%clk 0:02:54]}  d6 {[%clk 0:03:00]} 3. Nc3 {[%clk 0:02:47]}  e5 {[%clk 0:03:00]} 4. Nf3 {[%clk 0:02:30]}  e4 {[%clk 0:03:00]} 5. Nd2 {[%clk 0:02:26]}  Qe7 {[%clk 0:03:00]} 6. e3 {[%clk 0:02:26]}  Bf5 {[%clk 0:02:58]} 7. b4 {[%clk 0:02:25]}  h5 {[%clk 0:02:58]} 8. Bb2 {[%clk 0:02:24]}  g6 {[%clk 0:02:58]} 9. Be2 {[%clk 0:02:16]}  Bg7 {[%clk 0:02:57]} 10. Qb3 {[%clk 0:02:14]}  O-O {[%clk 0:02:56]} 11. a4 {[%clk 0:02:11]}  Re8 {[%clk 0:02:54]} 12. a5 {[%clk 0:02:11]}  Nbd7 {[%clk 0:02:51]} 13. a6 {[%clk 0:02:10]}  b6 {[%clk 0:02:51]} 14. Nd5 {[%clk 0:02:07]}  Qd8 {[%clk 0:02:51]} 15. b5 {[%clk 0:01:56]}  Nxd5 {[%clk 0:02:50]} 16. cxd5 {[%clk 0:01:56]}  Qg5 {[%clk 0:02:51]} 17. g3 {[%clk 0:01:54]}  h4 {[%clk 0:02:51]} 18. Rc1 {[%clk 0:01:49]}  Rac8 {[%clk 0:02:51]} 19. g4 {[%clk 0:01:43]}  Bxg4 {[%clk 0:02:40]} 20. Rg1 {[%clk 0:01:43]}  f5 {[%clk 0:02:34]} 21. h3 {[%clk 0:01:43]}  Nf6 {[%clk 0:02:33]} 22. hxg4 {[%clk 0:01:20]}  fxg4 {[%clk 0:02:34]} 23. Nf1 {[%clk 0:01:10]}  Kh7 {[%clk 0:02:21]} 24. Qd1 {[%clk 0:01:00]}  g3 {[%clk 0:02:21]} 25. fxg3 {[%clk 0:00:59]}  Nxd5 {[%clk 0:02:22]} 26. Qd2 {[%clk 0:00:52]}  Bh6 {[%clk 0:02:20]} 27. Rc3 {[%clk 0:00:22]}  Rf8 {[%clk 0:01:57]} 28. Rb3 {[%clk 0:00:15]}  Rf5 {[%clk 0:01:54]} 29. g4 {[%clk 0:00:14]}  Rcf8 {[%clk 0:01:51]} 30. Kd1 {[%clk 0:00:14]}  Rxf1+ {[%clk 0:01:46]} 31. Rxf1 {[%clk 0:00:15]}  Nxe3+ {[%clk 0:01:46]} 32. Rxe3 {[%clk 0:00:15]}  Rxf1+ {[%clk 0:01:46]} 33. Bxf1 {[%clk 0:00:15]}  Qxe3 {[%clk 0:01:47]} 34. Qxe3 {[%clk 0:00:16]}  Bxe3 {[%clk 0:01:46]} 35. d5 {[%clk 0:00:17]}  Kh6 {[%clk 0:01:36]} 36. Ke2 {[%clk 0:00:13]}  Bf4 {[%clk 0:01:32]} 37. Bg2 {[%clk 0:00:13]}  Kg5 {[%clk 0:01:03]} 38. Bxe4 {[%clk 0:00:13]}  Kxg4 {[%clk 0:01:04]} 39. Bxg6 {[%clk 0:00:13]}  h3 {[%clk 0:01:04]} 40. Bf6 {[%clk 0:00:13]}  Bg5 {[%clk 0:00:45]} 41. Bd4 {[%clk 0:00:13]}  Kf4 {[%clk 0:00:40]} 42. Be3+ {[%clk 0:00:06]}  Ke5 {[%clk 0:00:41]} 43. Bxg5 {[%clk 0:00:05]}  h2 {[%clk 0:00:41]} 44. Bf6+ {[%clk 0:00:04]}  Kf4 {[%clk 0:00:34]} 45. Bg5+ {[%clk 0:00:04]}  Ke5 {[%clk 0:00:33]} 46. Bf6+ {[%clk 0:00:04]}  Kxd5 {[%clk 0:00:24]} 47. Be8 {[%clk 0:00:04]}  Kc5 {[%clk 0:00:24]} 48. Bc6 {[%clk 0:00:04]}  d5 {[%clk 0:00:25]} 49. Be7+ {[%clk 0:00:04]}  Kc4 {[%clk 0:00:24]} 0-1


[Site "https://www.chess.com"]

[Event "Titled Tuesday Blitz December 06 Early 2022"]
[White "Przybylski, Wojciech"]
[Black "Mitrovic, Darko R"]
[WhiteFideId "1117599"]
[BlackFideId "927023"]
[WhiteElo "2217"]
[BlackElo "2150"]
[Result "1-0"]
[Round "02"]
[TimeControl "180+1"]
[Date "2022.12.07"]
[WhiteClock "0:00:06"]
[BlackClock "0:00:03"]

1. e4 {[%clk 0:02:54]}  e6 {[%clk 0:02:53]} 2. d4 {[%clk 0:02:48]}  d5 {[%clk 0:02:53]} 3. Nc3 {[%clk 0:02:38]}  Bb4 {[%clk 0:02:53]} 4. a3 {[%clk 0:02:32]}  Bxc3+ {[%clk 0:02:50]} 5. bxc3 {[%clk 0:02:25]}  dxe4 {[%clk 0:02:49]} 6. Qg4 {[%clk 0:02:24]}  Nf6 {[%clk 0:02:48]} 7. Qxg7 {[%clk 0:02:22]}  Rg8 {[%clk 0:02:48]} 8. Qh6 {[%clk 0:02:22]}  Nbd7 {[%clk 0:02:45]} 9. Ne2 {[%clk 0:02:13]}  b6 {[%clk 0:02:44]} 10. c4 {[%clk 0:02:07]}  Bb7 {[%clk 0:02:43]} 11. Qe3 {[%clk 0:02:06]}  Qe7 {[%clk 0:02:39]} 12. h3 {[%clk 0:02:03]}  O-O-O {[%clk 0:02:38]} 13. Qc3 {[%clk 0:02:01]}  c5 {[%clk 0:02:06]} 14. Be3 {[%clk 0:01:55]}  cxd4 {[%clk 0:02:04]} 15. Nxd4 {[%clk 0:01:54]}  Nc5 {[%clk 0:01:59]} 16. Nb5 {[%clk 0:01:49]}  a6 {[%clk 0:01:48]} 17. Nd4 {[%clk 0:01:30]}  Nfd7 {[%clk 0:01:48]} 18. a4 {[%clk 0:01:06]}  e5 {[%clk 0:01:20]} 19. Nf5 {[%clk 0:01:01]}  Qe6 {[%clk 0:01:19]} 20. g4 {[%clk 0:00:59]}  a5 {[%clk 0:01:18]} 21. Rd1 {[%clk 0:00:55]}  Nb8 {[%clk 0:00:58]} 22. Be2 {[%clk 0:00:48]}  Rxd1+ {[%clk 0:00:54]} 23. Kxd1 {[%clk 0:00:47]}  Rd8+ {[%clk 0:00:51]} 24. Kc1 {[%clk 0:00:46]}  Nxa4 {[%clk 0:00:49]} 25. Qa3 {[%clk 0:00:39]}  Nc5 {[%clk 0:00:44]} 26. Bxc5 {[%clk 0:00:25]}  bxc5 {[%clk 0:00:44]} 27. Qxc5+ {[%clk 0:00:25]}  Nc6 {[%clk 0:00:44]} 28. Rd1 {[%clk 0:00:23]}  Rxd1+ {[%clk 0:00:43]} 29. Bxd1 {[%clk 0:00:23]}  Kc7 {[%clk 0:00:43]} 30. c3 {[%clk 0:00:21]}  h5 {[%clk 0:00:38]} 31. Bc2 {[%clk 0:00:20]}  hxg4 {[%clk 0:00:37]} 32. hxg4 {[%clk 0:00:20]}  Qf6 {[%clk 0:00:13]} 33. Bxe4 {[%clk 0:00:18]}  Qg5+ {[%clk 0:00:13]} 34. Ne3 {[%clk 0:00:18]}  Qf4 {[%clk 0:00:10]} 35. Bd5 {[%clk 0:00:17]}  Qxf2 {[%clk 0:00:09]} 36. Bxc6 {[%clk 0:00:14]}  Qe1+ {[%clk 0:00:08]} 37. Kc2 {[%clk 0:00:13]}  Bxc6 {[%clk 0:00:08]} 38. Qxe5+ {[%clk 0:00:09]}  Kb6 {[%clk 0:00:07]} 39. Nd5+ {[%clk 0:00:09]}  Bxd5 {[%clk 0:00:07]} 40. Qxe1 {[%clk 0:00:09]}  Bxc4 {[%clk 0:00:06]} 41. Qe5 {[%clk 0:00:08]}  Be6 {[%clk 0:00:05]} 42. Kb2 {[%clk 0:00:08]}  a4 {[%clk 0:00:05]} 43. g5 {[%clk 0:00:08]}  Bb3 {[%clk 0:00:04]} 44. Ka3 {[%clk 0:00:08]}  Kc6 {[%clk 0:00:04]} 45. Kb4 {[%clk 0:00:08]}  Kd7 {[%clk 0:00:04]} 46. Qf6 {[%clk 0:00:08]}  Kc7 {[%clk 0:00:03]} 47. Kc5 {[%clk 0:00:07]}  Be6 {[%clk 0:00:04]} 48. Qe7+ {[%clk 0:00:07]}  Kc8 {[%clk 0:00:04]} 49. Kb6 {[%clk 0:00:07]}  a3 {[%clk 0:00:03]} 50. Qc7# {[%clk 0:00:06]} 1-0


[Site "https://www.chess.com"]

[Event "Titled Tuesday Blitz December 06 Early 2022"]
[White "Ramirez Vido, Robert Yorisan"]
[Black "Postnikov, Daniil"]
[WhiteFideId "3513823"]
[BlackFideId "4166329"]
[WhiteElo "2372"]
[BlackElo "2261"]
[Result "0-1"]
[Round "02"]
[TimeControl "180+1"]
[Date "2022.12.07"]
[WhiteClock "0:00:17"]
[BlackClock "0:01:38"]

1. f4 {[%clk 0:03:00]}  e5 {[%clk 0:02:59]} 2. fxe5 {[%clk 0:02:59]}  d6 {[%clk 0:02:59]} 3. exd6 {[%clk 0:02:59]}  Bxd6 {[%clk 0:03:00]} 4. Nf3 {[%clk 0:03:00]}  g5 {[%clk 0:02:58]} 5. g3 {[%clk 0:02:57]}  g4 {[%clk 0:02:56]} 6. Nh4 {[%clk 0:02:57]}  Ne7 {[%clk 0:02:57]} 7. d4 {[%clk 0:02:57]}  Nbc6 {[%clk 0:02:48]} 8. c3 {[%clk 0:02:56]}  Ng6 {[%clk 0:02:48]} 9. Nxg6 {[%clk 0:02:56]}  hxg6 {[%clk 0:02:49]} 10. Qd3 {[%clk 0:02:56]}  Be6 {[%clk 0:02:35]} 11. Bg2 {[%clk 0:02:50]}  Qe7 {[%clk 0:02:34]} 12. e4 {[%clk 0:02:49]}  O-O-O {[%clk 0:02:33]} 13. Nd2 {[%clk 0:02:39]}  f5 {[%clk 0:02:32]} 14. Qe2 {[%clk 0:02:22]}  f4 {[%clk 0:02:21]} 15. e5 {[%clk 0:02:11]}  Bb4 {[%clk 0:01:54]} 16. gxf4 {[%clk 0:02:04]}  Ba5 {[%clk 0:01:50]} 17. Bxc6 {[%clk 0:02:02]}  bxc6 {[%clk 0:01:49]} 18. Qa6+ {[%clk 0:02:02]}  Kb8 {[%clk 0:01:49]} 19. Qxa5 {[%clk 0:02:02]}  Bd5 {[%clk 0:01:48]} 20. Rg1 {[%clk 0:01:54]}  Qh4+ {[%clk 0:01:47]} 21. Kd1 {[%clk 0:01:47]}  Qxh2 {[%clk 0:01:46]} 22. Re1 {[%clk 0:01:27]}  g3 {[%clk 0:01:45]} 23. c4 {[%clk 0:00:59]}  g2 {[%clk 0:01:44]} 24. Nb3 {[%clk 0:00:17]}  Bf3+ {[%clk 0:01:38]} 0-1


[Site "https://www.chess.com"]

[Event "Titled Tuesday Blitz December 06 Early 2022"]
[White "Sadhwani, Raunak"]
[Black "Goroshkov, Maksym"]
[WhiteFideId "35093487"]
[BlackFideId "14142716"]
[WhiteElo "2657"]
[BlackElo "2258"]
[Result "1-0"]
[Round "02"]
[TimeControl "180+1"]
[Date "2022.12.06"]
[WhiteClock "0:01:40"]
[BlackClock "0:00:21"]

1. c4 {[%clk 0:03:00]}  Nf6 {[%clk 0:02:59]} 2. Nc3 {[%clk 0:02:59]}  d5 {[%clk 0:02:58]} 3. cxd5 {[%clk 0:02:55]}  Nxd5 {[%clk 0:02:57]} 4. Nf3 {[%clk 0:02:49]}  g6 {[%clk 0:02:55]} 5. h4 {[%clk 0:02:48]}  h5 {[%clk 0:02:50]} 6. Qb3 {[%clk 0:02:35]}  Nb6 {[%clk 0:02:41]} 7. Ng5 {[%clk 0:02:32]}  e6 {[%clk 0:02:38]} 8. d4 {[%clk 0:02:20]}  Bg7 {[%clk 0:02:35]} 9. Bf4 {[%clk 0:02:20]}  O-O {[%clk 0:02:11]} 10. e3 {[%clk 0:02:20]}  Nc6 {[%clk 0:02:09]} 11. Rd1 {[%clk 0:02:19]}  Nd5 {[%clk 0:02:01]} 12. Bg3 {[%clk 0:02:17]}  Nxc3 {[%clk 0:01:56]} 13. bxc3 {[%clk 0:02:18]}  b6 {[%clk 0:01:55]} 14. Be2 {[%clk 0:02:16]}  Bb7 {[%clk 0:01:54]} 15. O-O {[%clk 0:02:16]}  Ne7 {[%clk 0:01:52]} 16. e4 {[%clk 0:02:15]}  Bf6 {[%clk 0:01:43]} 17. Qc2 {[%clk 0:02:09]}  Nc8 {[%clk 0:01:30]} 18. f4 {[%clk 0:02:06]}  Bg7 {[%clk 0:01:28]} 19. f5 {[%clk 0:02:05]}  Nd6 {[%clk 0:01:05]} 20. fxg6 {[%clk 0:02:01]}  f5 {[%clk 0:00:50]} 21. Nxe6 {[%clk 0:02:00]}  Qe7 {[%clk 0:00:49]} 22. Nxf8 {[%clk 0:01:46]}  Bxe4 {[%clk 0:00:41]} 23. Qb3+ {[%clk 0:01:42]}  Kxf8 {[%clk 0:00:41]} 24. Bd3 {[%clk 0:01:42]}  Ke8 {[%clk 0:00:28]} 25. Bxd6 {[%clk 0:01:39]}  cxd6 {[%clk 0:00:24]} 26. Bxe4 {[%clk 0:01:39]}  fxe4 {[%clk 0:00:22]} 27. Rf7 {[%clk 0:01:39]}  Qxh4 {[%clk 0:00:21]} 28. Qe6+ {[%clk 0:01:40]} 1-0


[Site "https://www.chess.com"]

[Event "Titled Tuesday Blitz December 06 Early 2022"]
[White "Sailer, Mike"]
[Black "Devaev, Alexander"]
[WhiteFideId "2012901"]
[BlackFideId "4169395"]
[WhiteElo "2109"]
[BlackElo "2225"]
[Result "0-1"]
[Round "02"]
[TimeControl "180+1"]
[Date "2022.12.07"]
[WhiteClock "0:00:03"]
[BlackClock "0:01:32"]

1. Nf3 {[%clk 0:02:59]}  Nf6 {[%clk 0:02:59]} 2. c4 {[%clk 0:03:00]}  c5 {[%clk 0:02:59]} 3. Nc3 {[%clk 0:03:01]}  e6 {[%clk 0:03:00]} 4. g3 {[%clk 0:03:01]}  Be7 {[%clk 0:03:00]} 5. Bg2 {[%clk 0:03:02]}  O-O {[%clk 0:03:01]} 6. O-O {[%clk 0:03:01]}  Nc6 {[%clk 0:03:02]} 7. d4 {[%clk 0:02:59]}  cxd4 {[%clk 0:03:03]} 8. Nxd4 {[%clk 0:02:58]}  Ne5 {[%clk 0:03:03]} 9. b3 {[%clk 0:02:53]}  d6 {[%clk 0:03:03]} 10. Bb2 {[%clk 0:02:51]}  a6 {[%clk 0:03:03]} 11. f4 {[%clk 0:02:38]}  Ng6 {[%clk 0:03:01]} 12. e4 {[%clk 0:02:35]}  Re8 {[%clk 0:02:59]} 13. h3 {[%clk 0:02:23]}  Qc7 {[%clk 0:02:59]} 14. Rc1 {[%clk 0:02:11]}  Rb8 {[%clk 0:02:58]} 15. a4 {[%clk 0:02:11]}  Bf8 {[%clk 0:02:58]} 16. Kh2 {[%clk 0:02:05]}  b6 {[%clk 0:02:58]} 17. Qe2 {[%clk 0:01:26]}  Bb7 {[%clk 0:02:58]} 18. Rfd1 {[%clk 0:01:26]}  Nd7 {[%clk 0:02:58]} 19. h4 {[%clk 0:01:19]}  Be7 {[%clk 0:02:58]} 20. h5 {[%clk 0:01:19]}  Ngf8 {[%clk 0:02:59]} 21. Qg4 {[%clk 0:01:15]}  Nf6 {[%clk 0:02:43]} 22. Qh3 {[%clk 0:01:11]}  h6 {[%clk 0:02:38]} 23. Bf3 {[%clk 0:01:07]}  N6h7 {[%clk 0:02:32]} 24. Rd2 {[%clk 0:00:50]}  Nd7 {[%clk 0:02:13]} 25. Rcd1 {[%clk 0:00:43]}  Nc5 {[%clk 0:02:14]} 26. b4 {[%clk 0:00:24]}  Nd7 {[%clk 0:02:12]} 27. Nxe6 {[%clk 0:00:23]}  fxe6 {[%clk 0:02:09]} 28. Qxe6+ {[%clk 0:00:23]}  Kh8 {[%clk 0:02:07]} 29. Nd5 {[%clk 0:00:22]}  Bxd5 {[%clk 0:02:05]} 30. exd5 {[%clk 0:00:17]}  Bf6 {[%clk 0:02:04]} 31. Qf7 {[%clk 0:00:11]}  Re7 {[%clk 0:01:58]} 32. Qg6 {[%clk 0:00:11]}  Bxb2 {[%clk 0:01:42]} 33. Rxb2 {[%clk 0:00:11]}  Qxc4 {[%clk 0:01:42]} 34. Bg4 {[%clk 0:00:10]}  Ndf8 {[%clk 0:01:42]} 35. Qxd6 {[%clk 0:00:08]}  Rbe8 {[%clk 0:01:31]} 36. Be6 {[%clk 0:00:08]}  Nxe6 {[%clk 0:01:28]} 37. dxe6 {[%clk 0:00:08]}  Rxe6 {[%clk 0:01:29]} 38. Qd7 {[%clk 0:00:06]}  Re2+ {[%clk 0:01:29]} 39. Rxe2 {[%clk 0:00:06]}  Qxe2+ {[%clk 0:01:30]} 40. Kh3 {[%clk 0:00:06]}  Qxh5+ {[%clk 0:01:30]} 41. Kg2 {[%clk 0:00:07]}  Qe2+ {[%clk 0:01:31]} 42. Kh3 {[%clk 0:00:07]}  Nf6 {[%clk 0:01:31]} 43. Qd4 {[%clk 0:00:06]}  Qg4+ {[%clk 0:01:31]} 44. Kg2 {[%clk 0:00:06]}  Re2+ {[%clk 0:01:32]} 45. Kf1 {[%clk 0:00:04]}  Qf3+ {[%clk 0:01:31]} 46. Kg1 {[%clk 0:00:03]}  Qg2# {[%clk 0:01:32]} 0-1


[Site "https://www.chess.com"]

[Event "Titled Tuesday Blitz December 06 Early 2022"]
[White "Salinas Herrera, Pablo"]
[Black "Bambino Filho, Antonio Carlos"]
[WhiteFideId "3407128"]
[BlackFideId "2113163"]
[WhiteElo "2557"]
[BlackElo "2424"]
[Result "1-0"]
[Round "02"]
[TimeControl "180+1"]
[Date "2022.12.07"]
[WhiteClock "0:02:29"]
[BlackClock "0:01:30"]

1. Nf3 {[%clk 0:03:00]}  c5 {[%clk 0:02:55]} 2. g3 {[%clk 0:03:01]}  Nc6 {[%clk 0:02:56]} 3. Bg2 {[%clk 0:03:01]}  g6 {[%clk 0:02:56]} 4. O-O {[%clk 0:03:02]}  Bg7 {[%clk 0:02:56]} 5. Re1 {[%clk 0:03:00]}  e5 {[%clk 0:02:56]} 6. e4 {[%clk 0:02:59]}  Nge7 {[%clk 0:02:56]} 7. Nc3 {[%clk 0:02:59]}  O-O {[%clk 0:02:57]} 8. d3 {[%clk 0:02:59]}  d6 {[%clk 0:02:57]} 9. Nd5 {[%clk 0:02:59]}  Nxd5 {[%clk 0:02:57]} 10. exd5 {[%clk 0:03:00]}  Ne7 {[%clk 0:02:58]} 11. c4 {[%clk 0:03:00]}  h6 {[%clk 0:02:57]} 12. Rb1 {[%clk 0:03:00]}  f5 {[%clk 0:02:57]} 13. b4 {[%clk 0:03:00]}  b6 {[%clk 0:02:56]} 14. a4 {[%clk 0:03:00]}  g5 {[%clk 0:02:54]} 15. a5 {[%clk 0:03:00]}  f4 {[%clk 0:02:55]} 16. Nd2 {[%clk 0:02:59]}  Nf5 {[%clk 0:02:47]} 17. Ne4 {[%clk 0:02:57]}  Nd4 {[%clk 0:02:42]} 18. Bb2 {[%clk 0:02:56]}  g4 {[%clk 0:02:31]} 19. bxc5 {[%clk 0:02:51]}  bxc5 {[%clk 0:02:30]} 20. Bc3 {[%clk 0:02:51]}  f3 {[%clk 0:02:26]} 21. Bf1 {[%clk 0:02:51]}  Bf5 {[%clk 0:02:26]} 22. Rb7 {[%clk 0:02:50]}  Bxe4 {[%clk 0:02:25]} 23. Rxe4 {[%clk 0:02:50]}  h5 {[%clk 0:02:22]} 24. h3 {[%clk 0:02:49]}  Qc8 {[%clk 0:02:06]} 25. a6 {[%clk 0:02:43]}  Rf7 {[%clk 0:02:06]} 26. Qb1 {[%clk 0:02:40]}  Ne2+ {[%clk 0:01:45]} 27. Bxe2 {[%clk 0:02:40]}  fxe2 {[%clk 0:01:46]} 28. hxg4 {[%clk 0:02:39]}  hxg4 {[%clk 0:01:45]} 29. Rxe2 {[%clk 0:02:37]}  Qf5 {[%clk 0:01:45]} 30. Rxf7 {[%clk 0:02:34]}  Qxf7 {[%clk 0:01:43]} 31. Qb7 {[%clk 0:02:32]}  Qxb7 {[%clk 0:01:29]} 32. axb7 {[%clk 0:02:32]}  Rb8 {[%clk 0:01:30]} 33. Rb2 {[%clk 0:02:31]}  Kf7 {[%clk 0:01:30]} 34. Ba5 {[%clk 0:02:29]} 1-0


[Site "https://www.chess.com"]

[Event "Titled Tuesday Blitz December 06 Early 2022"]
[White "Samaganova, Aleksandra"]
[Black "Bilan, Danila"]
[WhiteFideId "13800221"]
[BlackFideId "24161918"]
[WhiteElo "1864"]
[BlackElo "2182"]
[Result "1-0"]
[Round "02"]
[TimeControl "180+1"]
[Date "2022.12.07"]
[WhiteClock "0:01:07"]
[BlackClock "0:00:55"]

1. c4 {[%clk 0:03:00]}  c6 {[%clk 0:02:57]} 2. Nf3 {[%clk 0:02:58]}  d5 {[%clk 0:02:58]} 3. e3 {[%clk 0:02:50]}  Nf6 {[%clk 0:02:57]} 4. Nc3 {[%clk 0:02:47]}  e6 {[%clk 0:02:56]} 5. d4 {[%clk 0:02:43]}  Bd6 {[%clk 0:02:55]} 6. Bd3 {[%clk 0:02:40]}  Nbd7 {[%clk 0:02:51]} 7. O-O {[%clk 0:02:32]}  O-O {[%clk 0:02:46]} 8. Re1 {[%clk 0:02:30]}  dxc4 {[%clk 0:02:43]} 9. Bxc4 {[%clk 0:02:30]}  e5 {[%clk 0:02:43]} 10. e4 {[%clk 0:02:27]}  Qc7 {[%clk 0:02:34]} 11. h3 {[%clk 0:02:21]}  exd4 {[%clk 0:02:27]} 12. Nxd4 {[%clk 0:02:19]}  Ne5 {[%clk 0:02:27]} 13. Be2 {[%clk 0:02:17]}  Ng6 {[%clk 0:02:21]} 14. Be3 {[%clk 0:02:04]}  Re8 {[%clk 0:01:56]} 15. Qc2 {[%clk 0:01:59]}  Bd7 {[%clk 0:01:37]} 16. Rac1 {[%clk 0:01:35]}  Rac8 {[%clk 0:01:31]} 17. a3 {[%clk 0:01:23]}  a6 {[%clk 0:01:15]} 18. b4 {[%clk 0:01:22]}  Bf4 {[%clk 0:00:59]} 19. Bd3 {[%clk 0:01:17]}  Qe5 {[%clk 0:00:55]} 20. Nf3 {[%clk 0:01:13]}  Qxe4 {[%clk 0:00:55]} 21. Nxe4 {[%clk 0:01:07]} 1-0


[Site "https://www.chess.com"]

[Event "Titled Tuesday Blitz December 06 Early 2022"]
[White "Saravana, Krishnan P."]
[Black "Guzman Moneo, Alberto"]
[WhiteFideId "5018382"]
[BlackFideId "2209616"]
[WhiteElo "2190"]
[BlackElo "2157"]
[Result "1-0"]
[Round "02"]
[TimeControl "180+1"]
[Date "2022.12.07"]
[WhiteClock "0:01:26"]
[BlackClock "0:00:01"]

1. c4 {[%clk 0:02:57]}  g6 {[%clk 0:02:57]} 2. Nc3 {[%clk 0:02:57]}  Bg7 {[%clk 0:02:58]} 3. g3 {[%clk 0:02:57]}  e5 {[%clk 0:02:56]} 4. Bg2 {[%clk 0:02:57]}  f5 {[%clk 0:02:56]} 5. d3 {[%clk 0:02:56]}  Nf6 {[%clk 0:02:56]} 6. e3 {[%clk 0:02:39]}  O-O {[%clk 0:02:55]} 7. Nge2 {[%clk 0:02:36]}  d6 {[%clk 0:02:51]} 8. O-O {[%clk 0:02:36]}  Nc6 {[%clk 0:02:47]} 9. Rb1 {[%clk 0:02:36]}  a5 {[%clk 0:02:47]} 10. a3 {[%clk 0:02:36]}  g5 {[%clk 0:02:40]} 11. b4 {[%clk 0:02:36]}  axb4 {[%clk 0:02:39]} 12. axb4 {[%clk 0:02:36]}  f4 {[%clk 0:02:36]} 13. exf4 {[%clk 0:02:35]}  exf4 {[%clk 0:02:37]} 14. gxf4 {[%clk 0:02:33]}  gxf4 {[%clk 0:02:34]} 15. Nxf4 {[%clk 0:02:32]}  Bg4 {[%clk 0:02:34]} 16. f3 {[%clk 0:02:27]}  Bf5 {[%clk 0:02:29]} 17. Ne4 {[%clk 0:02:24]}  Nd4 {[%clk 0:02:13]} 18. Be3 {[%clk 0:02:22]}  Nd7 {[%clk 0:02:05]} 19. Ng3 {[%clk 0:02:18]}  c5 {[%clk 0:01:57]} 20. Nfh5 {[%clk 0:02:13]}  Bh8 {[%clk 0:01:40]} 21. f4 {[%clk 0:02:07]}  Qh4 {[%clk 0:00:45]} 22. Kh1 {[%clk 0:01:50]}  Nf6 {[%clk 0:00:16]} 23. Bxd4 {[%clk 0:01:33]}  cxd4 {[%clk 0:00:12]} 24. Nxf5 {[%clk 0:01:30]}  Qxh5 {[%clk 0:00:11]} 25. Bd5+ {[%clk 0:01:30]}  Rf7 {[%clk 0:00:09]} 26. Qxh5 {[%clk 0:01:25]}  Nxh5 {[%clk 0:00:08]} 27. Nh6+ {[%clk 0:01:25]}  Kg7 {[%clk 0:00:01]} 28. Nxf7 {[%clk 0:01:26]} 1-0


[Site "https://www.chess.com"]

[Event "Titled Tuesday Blitz December 06 Early 2022"]
[White "Sargissyan, Sargis"]
[Black "Yeremyan, Alen"]
[WhiteFideId "13303210"]
[BlackFideId "13308998"]
[WhiteElo "2109"]
[BlackElo "2159"]
[Result "0-1"]
[Round "02"]
[TimeControl "180+1"]
[Date "2022.12.07"]
[WhiteClock "0:00:12"]
[BlackClock "0:00:33"]

1. e4 {[%clk 0:03:00]}  Nf6 {[%clk 0:02:58]} 2. e5 {[%clk 0:02:59]}  Nd5 {[%clk 0:02:58]} 3. Nf3 {[%clk 0:03:00]}  d6 {[%clk 0:02:59]} 4. d4 {[%clk 0:03:00]}  Bg4 {[%clk 0:02:59]} 5. Be2 {[%clk 0:03:00]}  c6 {[%clk 0:02:59]} 6. h3 {[%clk 0:02:59]}  Bxf3 {[%clk 0:03:00]} 7. Bxf3 {[%clk 0:02:57]}  dxe5 {[%clk 0:03:00]} 8. dxe5 {[%clk 0:02:57]}  e6 {[%clk 0:03:01]} 9. O-O {[%clk 0:02:53]}  Nd7 {[%clk 0:03:01]} 10. Qe2 {[%clk 0:02:51]}  Qc7 {[%clk 0:03:01]} 11. Re1 {[%clk 0:02:51]}  O-O-O {[%clk 0:03:02]} 12. c4 {[%clk 0:02:47]}  Ne7 {[%clk 0:03:02]} 13. Bf4 {[%clk 0:02:45]}  Nf5 {[%clk 0:03:00]} 14. Nd2 {[%clk 0:02:26]}  Bb4 {[%clk 0:02:34]} 15. Rad1 {[%clk 0:01:34]}  Nc5 {[%clk 0:02:31]} 16. Be4 {[%clk 0:01:09]}  Nd4 {[%clk 0:02:01]} 17. Qg4 {[%clk 0:01:07]}  h5 {[%clk 0:01:06]} 18. Qg5 {[%clk 0:01:01]}  Nxe4 {[%clk 0:00:42]} 19. Rxe4 {[%clk 0:01:00]}  Nf5 {[%clk 0:00:34]} 20. a3 {[%clk 0:00:46]}  Be7 {[%clk 0:00:34]} 21. Qxe7 {[%clk 0:00:14]}  Nxe7 {[%clk 0:00:32]} 22. Bg5 {[%clk 0:00:13]}  Rd7 {[%clk 0:00:31]} 23. Ree1 {[%clk 0:00:14]}  Nf5 {[%clk 0:00:31]} 24. Ne4 {[%clk 0:00:12]}  Rxd1 {[%clk 0:00:32]} 25. Rxd1 {[%clk 0:00:12]}  Qxe5 {[%clk 0:00:33]} 0-1


[Site "https://www.chess.com"]